bitfinex/quotes_BTCUSD_20220103
["timestamp","ask_amount","ask_price","bid_price","bid_amount"]
[1641168002025,0.344887,47303.0,47301.0,0.00244]
[1641168002216,0.3957753,47304.0,47301.0,0.00244]
[1641168004017,0.4457753,47304.0,47301.0,0.00244]
[1641168004418,0.3957753,47304.0,47301.0,0.00244]
[1641168005576,0.158583,47304.0,47301.0,0.00244]
[1641168007179,0.158583,47304.0,47301.0,0.00264]
[1641168009518,0.105721,47304.0,47301.0,0.00264]
[1641168009725,0.105721,47304.0,47302.0,0.02842392]
[1641168012324,0.344887,47303.0,47302.0,0.02842392]
[1641168012521,0.105721,47304.0,47302.0,0.02842392]
[1641168012922,0.05286,47304.0,47302.0,0.02842392]
[1641168014769,0.05286,47304.0,47301.0,0.00264]
[1641168014975,0.05286,47304.0,47303.0,0.01421196]
[1641168015173,0.397747,47304.0,47303.0,0.01421196]
[1641168016922,0.05286,47304.0,47303.0,0.01421196]
[1641168018723,0.00012342,47305.0,47303.0,0.01421196]
[1641168019224,0.00012342,47305.0,47303.0,0.22421196]
[1641168020027,0.00012342,47305.0,47303.0,0.21]
[1641168020224,0.00012342,47305.0,47304.0,0.02842392]
[1641168020869,0.63974217,47306.0,47304.0,0.02842392]
[1641168021466,1.66503215,47305.0,47304.0,0.02842392]
[1641168021668,0.34609161,47305.0,47304.0,0.02842392]
[1641168021868,0.39609161,47305.0,47304.0,0.02842392]
[1641168022468,1.37438037,47305.0,47304.0,0.02842392]
[1641168022672,1.72955135,47305.0,47304.0,0.02842392]
[1641168022867,1.05955135,47305.0,47304.0,0.02842392]
[1641168023668,1.76966786,47305.0,47304.0,0.02842392]
[1641168026010,1.15955135,47305.0,47304.0,0.02842392]
[1641168026210,1.56966348,47305.0,47304.0,0.02842392]
[1641168027211,1.15955135,47305.0,47304.0,0.02842392]
[1641168027411,1.15834674,47305.0,47304.0,0.02842392]
[1641168028268,1.8396093,47305.0,47304.0,0.02842392]
[1641168028471,1.17121682,47305.0,47304.0,0.02842392]
[1641168028673,1.385,47304.0,47301.0,0.00253]
[1641168028873,1.63616483,47302.0,47301.0,0.00242]
[1641168029071,1.63616483,47302.0,47300.0,0.00792889]
[1641168029072,1.634887,47301.0,47300.0,0.00792889]
[1641168029270,1.89337744,47300.0,47291.0,0.00233]
[1641168029476,1.63615465,47299.0,47291.0,0.00233]
[1641168029772,0.44615465,47299.0,47298.0,0.00021955]
[1641168030372,0.49903565,47299.0,47298.0,0.00021955]
[1641168030973,0.89027741,47299.0,47298.0,0.00021955]
[1641168032016,1.59527619,47299.0,47298.0,0.00021955]
[1641168032415,3.21527619,47299.0,47298.0,0.00021955]
[1641168032616,3.26527619,47299.0,47298.0,0.00021955]
[1641168033017,3.26527619,47299.0,47291.0,0.00233]
[1641168033018,1.17,47297.0,47291.0,0.00233]
[1641168033222,1.78785089,47297.0,47291.0,0.00233]
[1641168033420,1.78785089,47297.0,47291.0,0.00222]
[1641168033421,0.00129966,47292.0,47291.0,0.00222]
[1641168033619,1.63618666,47292.0,47291.0,0.00222]
[1641168034023,1.73618666,47292.0,47291.0,0.00222]
[1641168034219,1.73618666,47292.0,47287.0,0.00022]
[1641168034421,1.73618666,47292.0,47284.0,0.02975]
[1641168034422,0.00124325,47285.0,47284.0,0.02975]
[1641168034621,0.27424731,47285.0,47284.0,0.02975]
[1641168035022,0.66913431,47285.0,47284.0,0.02975]
[1641168035678,0.72202231,47285.0,47284.0,0.02975]
[1641168036478,0.72077906,47285.0,47284.0,0.02975]
[1641168037981,0.72077906,47285.0,47284.0,0.23975]
[1641168038587,1.29,47283.0,47281.0,0.00222]
[1641168038785,0.16914,47284.0,47278.0,0.00022]
[1641168038786,1.29011,47279.0,47278.0,0.00022]
[1641168038985,1.732197,47279.0,47278.0,0.00022]
[1641168039187,1.29,47278.0,47277.0,0.00022]
[1641168039425,1.29,47278.0,47275.0,0.00033]
[1641168039426,1.38625635,47277.0,47276.0,0.01022]
[1641168039626,1.92834335,47277.0,47276.0,0.01022]
[1641168039827,0.44334335,47277.0,47276.0,0.01022]
[1641168040025,0.39614335,47277.0,47276.0,0.01022]
[1641168040327,0.39614335,47277.0,47276.0,0.01078103]
[1641168043260,0.74265572,47277.0,47276.0,0.01078103]
[1641168043864,0.39614335,47277.0,47276.0,0.01078103]
[1641168044063,0.39628913,47277.0,47276.0,0.01078103]
[1641168044264,0.74294479,47277.0,47276.0,0.01078103]
[1641168045265,0.39643491,47277.0,47276.0,0.01078103]
[1641168045464,0.7466182,47277.0,47276.0,0.01078103]
[1641168045663,0.39643491,47277.0,47276.0,0.01078103]
[1641168045863,0.73912667,47277.0,47276.0,0.01078103]
[1641168046264,1.32912667,47277.0,47276.0,0.00578103]
[1641168046663,0.83912667,47277.0,47276.0,0.00578103]
[1641168046909,0.39643491,47277.0,47276.0,0.00578103]
[1641168047508,0.73929049,47277.0,47276.0,0.00578103]
[1641168048110,0.39643491,47277.0,47276.0,0.00078103]
[1641168048510,0.74043377,47277.0,47276.0,0.00078103]
[1641168049115,0.39643491,47277.0,47276.0,0.00078103]
[1641168049312,0.74805593,47277.0,47276.0,0.00078103]
[1641168049715,0.39643491,47277.0,47276.0,0.00078103]
[1641168050111,0.74277114,47277.0,47276.0,0.00078103]
[1641168050310,0.39643491,47277.0,47276.0,0.00078103]
[1641168051163,0.73949138,47277.0,47276.0,0.00078103]
[1641168051389,0.9932989,47277.0,47275.0,0.00453718]
[1641168051564,1.624887,47276.0,47275.0,0.00453718]
[1641168051764,1.28,47275.0,47274.0,8.718e-05]
[1641168051962,1.73195608,47275.0,47274.0,8.718e-05]
[1641168052163,1.88195608,47275.0,47274.0,8.718e-05]
[1641168052365,0.60195608,47275.0,47274.0,8.718e-05]
[1641168053076,0.60195608,47275.0,47273.0,0.00012718]
[1641168053077,1.624887,47274.0,47273.0,0.00012718]
[1641168053267,1.62613001,47274.0,47273.0,0.00012718]
[1641168053464,0.49613001,47274.0,47273.0,0.00058363]
[1641168053664,0.84332185,47274.0,47273.0,0.00058363]
[1641168054924,1.96332185,47274.0,47273.0,0.00058363]
[1641168055325,0.84346479,47274.0,47273.0,0.00058363]
[1641168057328,0.84346479,47274.0,47267.0,0.00033]
[1641168057329,1.624887,47273.0,47272.0,0.00035963]
[1641168057527,1.724887,47273.0,47272.0,0.00035963]
[1641168057927,0.444887,47273.0,47272.0,0.00035963]
[1641168058762,0.444887,47273.0,47272.0,0.00522619]
[1641168059166,0.344887,47273.0,47272.0,0.00522619]
[1641168059664,0.444887,47273.0,47268.0,0.00044]
[1641168059864,0.23543104,47268.0,47265.0,0.00816783]
[1641168060063,0.39123323,47268.0,47265.0,0.00816783]
[1641168060264,0.39123323,47268.0,47265.0,8.619e-05]
[1641168060564,0.05290119,47268.0,47265.0,8.619e-05]
[1641168060766,0.32448602,47267.0,47265.0,8.619e-05]
[1641168060969,0.344887,47266.0,47265.0,8.619e-05]
[1641168061162,0.44611722,47266.0,47265.0,8.619e-05]
[1641168061362,0.44611722,47266.0,47265.0,0.00023225]
[1641168061567,0.74699242,47266.0,47265.0,0.00023225]
[1641168063214,0.34611722,47266.0,47265.0,0.00023225]
[1641168063420,0.344887,47266.0,47265.0,0.00023225]
[1641168063619,0.24264307,47263.0,47254.0,0.75158013]
[1641168063817,0.052907,47262.0,47253.0,0.00044]
[1641168064018,0.105812,47264.0,47255.0,0.00018258]
[1641168064619,0.27448602,47267.0,47255.0,0.00018258]
[1641168064818,0.37738702,47267.0,47255.0,0.00018258]
[1641168065023,0.052901,47264.0,47255.0,0.00018258]
[1641168065220,0.00125731,47272.0,47255.0,0.00018258]
[1641168065221,0.00125731,47272.0,47257.0,0.1]
[1641168065418,0.00125731,47272.0,47257.0,0.1472]
[1641168065662,0.002,47267.0,47261.0,0.052893]
[1641168065863,0.002,47267.0,47262.0,0.0472]
[1641168066061,0.002,47267.0,47262.0,0.28776886]
[1641168066862,0.00013561,47266.0,47262.0,0.28776886]
[1641168067065,0.00013561,47266.0,47263.0,0.052891]
[1641168067262,0.00013561,47266.0,47263.0,0.100091]
[1641168067565,0.00013561,47266.0,47264.0,0.344887]
[1641168070733,0.00013561,47266.0,47264.0,0.34975432]
[1641168072832,0.00013561,47266.0,47265.0,0.05289]
[1641168073578,0.00013561,47266.0,47264.0,0.00486732]
[1641168076380,0.344887,47265.0,47264.0,0.00486732]
[1641168077430,0.34502302,47265.0,47264.0,0.00486732]
[1641168083178,0.00013602,47265.0,47264.0,0.00486732]
[1641168083679,0.34502302,47265.0,47264.0,0.00486732]
[1641168087520,0.93255687,47265.0,47264.0,0.00486732]
[1641168087923,0.34502302,47265.0,47264.0,0.00486732]
[1641168088367,0.93107121,47265.0,47264.0,0.00486732]
[1641168089668,0.68935788,47265.0,47264.0,0.00486732]
[1641168090073,1.39435666,47265.0,47264.0,0.00486732]
[1641168090272,0.34502302,47265.0,47264.0,0.00486732]
[1641168091570,0.39502302,47265.0,47264.0,0.00486732]
[1641168092023,1.1000218,47265.0,47264.0,0.00486732]
[1641168094528,1.43772567,47265.0,47264.0,0.00486732]
[1641168094728,1.1000218,47265.0,47264.0,0.00486732]
[1641168095564,1.43755493,47265.0,47264.0,0.00486732]
[1641168096466,0.73255615,47265.0,47264.0,0.00486732]
[1641168102132,0.83255615,47265.0,47264.0,0.00486732]
[1641168103667,0.49502302,47265.0,47264.0,0.00486732]
[1641168103866,0.39502302,47265.0,47264.0,0.00486732]
[1641168104967,0.73750578,47265.0,47264.0,0.00486732]
[1641168105772,0.39502302,47265.0,47264.0,0.00486732]
[1641168106269,0.73172465,47265.0,47264.0,0.00486732]
[1641168107932,0.83172465,47265.0,47264.0,0.00486732]
[1641168108133,0.87892465,47265.0,47264.0,0.00486732]
[1641168108336,0.00125661,47255.0,47254.0,0.07387896]
[1641168108539,0.53799794,47255.0,47254.0,0.07387896]
[1641168109040,1.49883649,47255.0,47254.0,0.07387896]
[1641168109236,1.84372349,47255.0,47254.0,0.0765572]
[1641168109441,3.55664477,47255.0,47252.0,0.03022]
[1641168109639,3.55664477,47255.0,47250.0,0.00022043]
[1641168109640,1.614887,47252.0,47250.0,0.00022043]
[1641168109937,1.614887,47252.0,47235.0,0.00044]
[1641168109938,1.61614311,47251.0,47244.0,0.00237547]
[1641168110139,0.344887,47247.0,47244.0,0.00237547]
[1641168110339,1.27,47245.0,47227.0,0.00072211]
[1641168110588,1.27,47245.0,47226.0,1.1888]
[1641168110589,0.05293997,47236.0,47226.0,1.17952211]
[1641168110790,0.05293997,47236.0,47228.0,0.00031038]
[1641168110791,0.0472,47235.0,47228.0,0.00031038]
[1641168110987,0.70309,47235.0,47228.0,0.00031038]
[1641168111195,0.344887,47234.0,47226.0,0.0003469]
[1641168111389,0.33048678,47229.0,47223.0,0.00011]
[1641168111695,0.33048678,47229.0,47216.0,0.19812849]
[1641168111696,0.052953,47223.0,47216.0,0.19812849]
[1641168111890,0.12141,47226.0,47215.0,0.00055]
[1641168112091,0.05,47225.0,47217.0,0.00016432]
[1641168112491,0.05,47227.0,47217.0,0.00016432]
[1641168112693,0.36717512,47228.0,47214.0,0.00011]
[1641168112892,0.26372957,47222.0,47212.0,0.28515252]
[1641168113088,0.26372957,47222.0,47212.0,0.2838731]
[1641168113389,7.303e-05,47221.0,47213.0,0.35457099]
[1641168113590,1.27,47212.0,47210.0,0.00011]
[1641168113794,1.27,47212.0,47207.0,0.05339]
[1641168113795,1.77932666,47211.0,47207.0,0.00044]
[1641168113990,1.16629352,47210.0,47196.0,0.02044]
[1641168114189,0.394887,47209.0,47208.0,9.129e-05]
[1641168114445,0.34614455,47209.0,47208.0,9.129e-05]
[1641168114850,0.39792,47212.0,47208.0,9.129e-05]
[1641168114851,0.34,47212.0,47208.0,9.129e-05]
[1641168115043,0.5,47217.0,47200.0,0.00053129]
[1641168115244,0.8690284,47217.0,47201.0,0.1]
[1641168115446,0.26485462,47215.0,47203.0,0.04203357]
[1641168115647,0.00136979,47216.0,47214.0,0.31988002]
[1641168115849,0.052955,47217.0,47214.0,0.31988002]
[1641168116245,0.00014606,47216.0,47214.0,0.31988002]
[1641168116645,0.00012781,47215.0,47206.0,0.04674999]
[1641168116846,0.05308481,47215.0,47207.0,0.344887]
[1641168117047,0.00010955,47214.0,47207.0,0.444887]
[1641168117245,0.00010955,47214.0,47208.0,0.1]
[1641168117445,9.129e-05,47213.0,47208.0,0.1]
[1641168117648,9.129e-05,47213.0,47209.0,0.344887]
[1641168117846,7.303e-05,47212.0,47207.0,0.202953]
[1641168118094,7.303e-05,47212.0,47211.0,0.13839248]
[1641168118269,0.3690284,47221.0,47211.0,0.48327948]
[1641168118270,0.36926575,47221.0,47211.0,0.48327948]
[1641168118471,0.36926575,47221.0,47208.0,0.25757239]
[1641168118472,1.2e-06,47211.0,47210.0,0.1]
[1641168118677,1.2e-06,47211.0,47210.0,1.57784642]
[1641168118871,0.58156327,47228.0,47212.0,0.0052097]
[1641168119175,0.58156327,47228.0,47225.0,0.5904]
[1641168119176,0.00010955,47227.0,47225.0,0.5904]
[1641168119371,0.00010955,47227.0,47226.0,1.55058244]
[1641168119570,0.58156327,47228.0,47226.0,1.64546944]
[1641168119769,0.58156327,47228.0,47227.0,0.48327948]
[1641168119970,0.58156327,47234.0,47227.0,1.16570948]
[1641168120172,0.00012781,47228.0,47227.0,1.127317]
[1641168120369,0.00012781,47228.0,47227.0,1.16570948]
[1641168120569,0.00012781,47228.0,47227.0,1.31863748]
[1641168120871,0.00012781,47228.0,47227.0,0.980117]
[1641168121477,0.00120203,47232.0,47228.0,0.344887]
[1641168121841,0.25481519,47232.0,47227.0,0.63523]
[1641168122030,0.00120203,47232.0,47228.0,0.0472]
[1641168122230,0.58156327,47232.0,47228.0,0.0472]
[1641168122431,0.58156327,47232.0,47229.0,0.05292267]
[1641168122630,0.69787592,47234.0,47230.0,0.0472]
[1641168122631,0.58156327,47234.0,47230.0,0.0472]
[1641168122830,0.58156327,47234.0,47231.0,0.052924]
[1641168123032,0.00122259,47240.0,47231.0,0.052924]
[1641168123033,9.129e-05,47233.0,47232.0,1.080171]
[1641168123231,9.129e-05,47233.0,47232.0,1.21856348]
[1641168123432,0.58176411,47239.0,47232.0,1.31856348]
[1641168123632,0.00020084,47239.0,47237.0,0.13839248]
[1641168123833,0.23641672,47242.0,47238.0,0.48327948]
[1641168124033,0.23641672,47242.0,47241.0,0.13839248]
[1641168124634,0.23641672,47242.0,47237.0,0.0472]
[1641168125035,0.00023735,47241.0,47238.0,0.3423108]
[1641168125236,0.00023735,47241.0,47238.0,0.4423108]
[1641168125437,0.002,47249.0,47240.0,1.54613019]
[1641168125688,0.002,47249.0,47248.0,1.2916554]
[1641168125887,0.001,47254.0,47249.0,0.78]
[1641168126092,0.001,47254.0,47253.0,1.47327948]
[1641168126286,0.001,47254.0,47253.0,0.58978563]
[1641168126588,0.0004747,47254.0,47253.0,2.43155127]
[1641168126787,0.58356327,47267.0,47257.0,0.344887]
[1641168126989,0.58356327,47267.0,47255.0,0.02001]
[1641168126990,0.58356327,47267.0,47262.0,0.5904]
[1641168127190,0.002,47267.0,47263.0,1.021937]
[1641168127391,0.58156327,47273.0,47270.0,0.09858152]
[1641168127392,0.01786327,47273.0,47270.0,0.09858152]
[1641168127589,0.05,47282.0,47274.0,0.344887]
[1641168127786,0.038,47285.0,47281.0,0.0012181]
[1641168127987,0.038,47285.0,47284.0,0.00122606]
[1641168128288,0.74993864,47285.0,47277.0,0.0423]
[1641168128487,0.344887,47284.0,47271.0,0.0423]
[1641168128686,0.00054774,47284.0,47272.0,0.63846588]
[1641168128887,0.00052948,47283.0,47272.0,0.63846588]
[1641168129339,0.00051122,47282.0,47272.0,0.63846588]
[1641168129535,0.00051122,47282.0,47272.0,0.344887]
[1641168129732,0.40293221,47280.0,47272.0,0.344887]
[1641168130133,0.28919673,47278.0,47272.0,0.344887]
[1641168130332,0.28919673,47278.0,47277.0,0.07612845]
[1641168131137,0.85064202,47278.0,47267.0,2.57023504]
[1641168131536,0.00041993,47277.0,47273.0,0.00809431]
[1641168131836,1.05064202,47278.0,47273.0,0.00809431]
[1641168131837,0.39528868,47276.0,47273.0,0.00809431]
[1641168132235,0.00038342,47275.0,47265.0,0.0423]
[1641168132435,0.344887,47274.0,47263.0,0.63965]
[1641168132634,0.40276875,47271.0,47263.0,0.63475]
[1641168133080,0.40307914,47271.0,47263.0,0.63475]
[1641168133884,0.00031039,47271.0,47263.0,0.63475]
[1641168134884,0.00031039,47271.0,47265.0,2.52616752]
[1641168135082,0.00031039,47271.0,47270.0,0.44346852]
[1641168137328,0.00031039,47271.0,47270.0,0.09858152]
[1641168138529,0.00031039,47271.0,47270.0,0.44346852]
[1641168138730,0.79752917,47278.0,47271.0,0.57]
[1641168138731,0.19531039,47278.0,47271.0,0.57]
[1641168138930,0.19531039,47278.0,47272.0,0.70615012]
[1641168139130,0.19531039,47278.0,47272.0,0.80615012]
[1641168139131,7.303e-05,47275.0,47272.0,0.80615012]
[1641168139329,7.303e-05,47275.0,47273.0,0.04855445]
[1641168139528,7.303e-05,47275.0,47274.0,0.52557948]
[1641168140031,7.303e-05,47275.0,47274.0,1.021787]
[1641168140432,0.00031685,47275.0,47274.0,1.16017948]
[1641168141075,0.00031685,47275.0,47274.0,1.55292322]
[1641168143682,0.00031685,47275.0,47274.0,1.60292322]
[1641168143884,0.00031685,47275.0,47274.0,1.70292322]
[1641168144534,0.00031685,47275.0,47274.0,1.65292322]
[1641168145337,0.00031685,47275.0,47274.0,2.82292322]
[1641168145532,0.00031685,47275.0,47274.0,2.77292322]
[1641168147533,0.00031685,47275.0,47274.0,2.82292322]
[1641168147732,0.00031685,47275.0,47274.0,2.77292322]
[1641168148170,0.00031685,47275.0,47274.0,2.38017948]
[1641168152716,0.00031685,47275.0,47274.0,1.26017948]
[1641168152921,0.00031685,47275.0,47274.0,0.979487]
[1641168153317,0.00031685,47275.0,47274.0,0.6346]
[1641168153718,0.28690617,47275.0,47274.0,0.6346]
[1641168154118,0.38690617,47275.0,47274.0,0.6346]
[1641168154317,0.73179317,47275.0,47274.0,0.6346]
[1641168157067,1.08336415,47275.0,47274.0,0.6346]
[1641168159070,0.73179317,47275.0,47274.0,0.6346]
[1641168160938,1.08394864,47275.0,47274.0,0.6346]
[1641168161136,1.28515797,47275.0,47274.0,0.6346]
[1641168161336,0.9330025,47275.0,47274.0,0.6346]
[1641168161531,0.9330025,47275.0,47270.0,0.10667588]
[1641168161532,0.10581416,47273.0,47270.0,0.10667588]
[1641168161732,2.12372494,47271.0,47270.0,0.10667588]
[1641168161933,2.50619249,47271.0,47270.0,0.10667588]
[1641168162131,2.65619249,47271.0,47270.0,0.10667588]
[1641168162332,2.69849249,47271.0,47270.0,0.09858152]
[1641168163182,1.32849249,47271.0,47270.0,0.09858152]
[1641168163380,1.69868387,47271.0,47270.0,0.09858152]
[1641168163592,1.36621632,47271.0,47270.0,0.09858152]
[1641168164680,1.64980706,47271.0,47270.0,0.09858152]
[1641168165083,1.54980706,47271.0,47270.0,0.09858152]
[1641168165281,1.74980706,47271.0,47270.0,0.09858152]
[1641168165482,1.64980706,47271.0,47270.0,0.09858152]
[1641168165886,0.09858152,47270.0,47264.0,0.00806764]
[1641168166088,1.42125772,47265.0,47264.0,0.00806764]
[1641168166284,2.04171201,47265.0,47264.0,0.00806764]
[1641168166485,0.3953783,47248.0,47234.0,1.1729]
[1641168166686,0.3953783,47248.0,47235.0,0.344887]
[1641168166924,0.3953783,47248.0,47238.0,0.32976573]
[1641168166925,0.30547053,47247.0,47238.0,0.32976573]
[1641168167330,0.052926,47247.0,47239.0,0.00058425]
[1641168167522,0.5483003,47248.0,47239.0,0.00058425]
[1641168167723,0.152922,47248.0,47239.0,0.00058425]
[1641168168522,0.1,47248.0,47239.0,0.00058425]
[1641168168727,0.05,47248.0,47241.0,0.59836644]
[1641168168923,0.05,47249.0,47241.0,0.59836644]
[1641168169122,0.05,47249.0,47242.0,0.00052948]
[1641168169724,0.58443082,47249.0,47242.0,0.00052948]
[1641168169923,0.58443082,47249.0,47243.0,0.344887]
[1641168170323,0.58443082,47249.0,47244.0,0.00049297]
[1641168170580,0.35180987,47257.0,47244.0,0.00049297]
[1641168170581,0.58443082,47253.0,47248.0,0.46286637]
[1641168170786,0.58443082,47253.0,47248.0,0.32447389]
[1641168170984,0.58443082,47253.0,47249.0,0.00040168]
[1641168171585,0.37282374,47252.0,47246.0,0.00045645]
[1641168171785,0.05292043,47250.0,47248.0,0.59836644]
[1641168172184,0.05292043,47250.0,47249.0,0.00040168]
[1641168172586,0.052919,47250.0,47249.0,0.00040168]
[1641168172783,0.2,47253.0,47249.0,0.66404222]
[1641168172985,0.58463394,47250.0,47249.0,0.70634222]
[1641168173185,0.58463394,47250.0,47249.0,0.6780038]
[1641168173890,0.00020312,47250.0,47249.0,0.6780038]
[1641168174086,0.00020312,47250.0,47249.0,0.7780038]
[1641168174341,0.2,47253.0,47250.0,0.89]
[1641168174533,0.2,47253.0,47252.0,0.344887]
[1641168174734,0.7091516,47258.0,47253.0,1.27]
[1641168174935,0.93489722,47267.0,47258.0,1.28]
[1641168175138,0.70319926,47263.0,47261.0,1.702189]
[1641168175340,0.70319926,47263.0,47262.0,1.59302121]
[1641168175534,0.70319926,47263.0,47262.0,2.58306843]
[1641168175734,0.09858152,47270.0,47265.0,0.05288059]
[1641168175935,0.09858152,47270.0,47262.0,2.58306843]
[1641168175936,0.09858152,47270.0,47269.0,0.344887]
[1641168176234,0.09858152,47270.0,47269.0,0.23357148]
[1641168176438,0.09858152,47270.0,47269.0,0.387187]
[1641168176834,0.09358152,47270.0,47269.0,0.387187]
[1641168178983,0.09358152,47270.0,47269.0,0.0423]
[1641168180984,0.29358152,47270.0,47269.0,0.0423]
[1641168182024,0.29358152,47270.0,47266.0,0.63480129]
[1641168182227,0.34358152,47270.0,47266.0,0.63480129]
[1641168182430,0.26161155,47269.0,47267.0,7.303e-05]
[1641168182629,0.0935,47266.0,47263.0,0.00806765]
[1641168182831,1.28,47264.0,47263.0,0.00806765]
[1641168183027,2.4321194,47264.0,47263.0,0.00806765]
[1641168183225,3.08640747,47264.0,47263.0,0.00814069]
[1641168183425,1.80640747,47264.0,47263.0,0.00814069]
[1641168183625,1.37049435,47264.0,47263.0,0.00814069]
[1641168184025,1.42341235,47264.0,47263.0,0.00814069]
[1641168184229,1.91640548,47264.0,47263.0,7.304e-05]
[1641168184424,1.63297984,47264.0,47263.0,7.304e-05]
[1641168184625,2.05473008,47264.0,47250.0,0.00031039]
[1641168184825,0.05291422,47257.0,47254.0,0.00802521]
[1641168185228,0.10582922,47257.0,47255.0,0.0002191]
[1641168185867,0.5849258,47256.0,47255.0,0.0002191]
[1641168186064,1.22460246,47256.0,47255.0,0.0002191]
[1641168186269,1.27460246,47256.0,47255.0,0.0002191]
[1641168186465,1.5197082,47256.0,47255.0,0.0002191]
[1641168186665,0.9347824,47256.0,47249.0,0.00032865]
[1641168186869,0.5898954,47256.0,47249.0,0.00032865]
[1641168187065,0.05291346,47255.0,47249.0,0.00032865]
[1641168188367,0.63783926,47255.0,47249.0,0.00032865]
[1641168188566,0.69075426,47255.0,47248.0,0.0003469]
[1641168188768,0.69075426,47255.0,47246.0,0.60155439]
[1641168188769,0.052914,47254.0,47247.0,0.00036516]
[1641168189429,0.1058293,47254.0,47247.0,0.00036516]
[1641168190024,0.1058293,47254.0,47247.0,0.60191955]
[1641168190226,0.1558293,47254.0,47247.0,0.60191955]
[1641168190429,0.1558293,47254.0,47248.0,0.0003469]
[1641168190430,0.152914,47254.0,47248.0,0.0003469]
[1641168190624,0.052919,47251.0,47248.0,0.0003469]
[1641168190827,0.052924,47250.0,47248.0,0.0003469]
[1641168191030,0.102924,47250.0,47248.0,0.0003469]
[1641168191428,0.5849258,47255.0,47248.0,0.3848447]
[1641168191628,0.5849258,47251.0,47249.0,0.07804276]
[1641168191825,0.5849258,47251.0,47250.0,0.7293848]
[1641168192026,0.70191096,47253.0,47251.0,2.4]
[1641168192224,0.93489722,47262.0,47253.0,1.24]
[1641168192528,0.93489722,47262.0,47258.0,0.28209919]
[1641168192727,0.93489722,47262.0,47258.0,0.32439919]
[1641168192925,0.70280915,47264.0,47259.0,0.00014607]
[1641168193781,0.00018898,47264.0,47259.0,0.00014607]
[1641168193983,1.12881212,47260.0,47259.0,0.00014607]
[1641168194382,1.57369912,47260.0,47259.0,0.00014607]
[1641168194585,1.57369912,47260.0,47254.0,0.00023736]
[1641168194783,0.33228945,47255.0,47254.0,0.00023736]
[1641168194984,0.38228945,47255.0,47254.0,0.00023736]
[1641168195184,0.05,47255.0,47254.0,0.00023736]
[1641168195384,0.43572972,47256.0,47253.0,0.00025561]
[1641168195885,0.05291336,47256.0,47253.0,0.00025561]
[1641168196088,0.00018246,47260.0,47253.0,0.00025561]
[1641168196285,0.00018246,47260.0,47253.0,0.40458488]
[1641168196487,0.00018246,47260.0,47254.0,0.344887]
[1641168196687,0.00018246,47260.0,47254.0,0.34512436]
[1641168196921,0.00018246,47260.0,47255.0,0.0002191]
[1641168197126,0.00018246,47260.0,47256.0,0.397786]
[1641168197424,0.00018246,47260.0,47257.0,0.00018258]
[1641168197824,0.00018246,47260.0,47253.0,0.00025561]
[1641168198222,0.00018246,47260.0,47253.0,0.23772207]
[1641168198624,0.00018246,47260.0,47254.0,0.00023736]
[1641168198823,0.00018246,47260.0,47254.0,0.05313936]
[1641168199025,0.00018246,47260.0,47254.0,0.00023736]
[1641168199223,0.00018246,47260.0,47255.0,0.0002191]
[1641168199423,0.00018246,47260.0,47253.0,0.00025561]
[1641168199923,0.00018246,47260.0,47254.0,0.28393915]
[1641168200125,0.00018246,47260.0,47255.0,0.052901]
[1641168200326,0.00018246,47260.0,47256.0,0.344887]
[1641168200588,0.00018246,47260.0,47257.0,0.00018258]
[1641168201192,0.00018246,47260.0,47256.0,0.00020084]
[1641168201390,0.00018246,47260.0,47257.0,0.052899]
[1641168201591,0.00018246,47260.0,47258.0,0.344887]
[1641168201791,0.00018246,47260.0,47258.0,0.34505133]
[1641168201991,0.00018246,47260.0,47259.0,0.00014607]
[1641168202295,0.00018246,47260.0,47259.0,0.34503307]
[1641168202690,0.00018246,47260.0,47259.0,0.44503307]
[1641168202891,0.00018246,47260.0,47259.0,0.34503307]
[1641168204740,0.00018246,47260.0,47259.0,0.9464433]
[1641168205238,0.00018246,47260.0,47259.0,0.34503307]
[1641168207240,0.00018246,47260.0,47259.0,0.00014607]
[1641168207543,0.00018246,47260.0,47258.0,0.00016433]
[1641168207941,0.00018246,47260.0,47257.0,0.00018258]
[1641168208596,0.00018246,47260.0,47256.0,0.00020084]
[1641168209799,0.40225151,47260.0,47256.0,0.00020084]
[1641168210200,0.00018246,47260.0,47256.0,0.00020084]
[1641168210801,0.00028246,47260.0,47256.0,0.00020084]
[1641168211000,0.00028246,47260.0,47254.0,0.2852397]
[1641168211201,0.00028246,47260.0,47255.0,0.0002191]
[1641168212020,0.05318846,47260.0,47255.0,0.0002191]
[1641168212422,0.00028246,47260.0,47255.0,0.0002191]
[1641168213524,0.00028246,47260.0,47256.0,0.344887]
[1641168213921,0.00028246,47260.0,47257.0,0.00018258]
[1641168214422,0.00028246,47260.0,47255.0,0.0002191]
[1641168214622,0.00028246,47260.0,47256.0,0.344887]
[1641168215027,0.00028246,47260.0,47257.0,0.00018258]
[1641168215672,0.00028246,47260.0,47256.0,0.00020084]
[1641168215871,0.00028246,47260.0,47257.0,1.69777258]
[1641168216072,0.00028246,47260.0,47258.0,0.344887]
[1641168216274,0.00028246,47260.0,47258.0,0.34505133]
[1641168216476,0.00028246,47260.0,47259.0,0.00014607]
[1641168216673,0.00028246,47260.0,47259.0,0.34503307]
[1641168217476,0.00028246,47260.0,47259.0,0.87290568]
[1641168217678,0.00028246,47260.0,47259.0,2.13520568]
[1641168217877,0.00028246,47260.0,47259.0,1.74572555]
[1641168218477,0.00028246,47260.0,47259.0,2.58234891]
[1641168219725,0.00028246,47260.0,47259.0,1.36234891]
[1641168219928,0.00028246,47260.0,47259.0,1.18165643]
[1641168220326,0.00028246,47260.0,47259.0,0.34503307]
[1641168222127,0.00028246,47260.0,47259.0,0.94646365]
[1641168224183,0.00028246,47260.0,47259.0,0.34503307]
[1641168226918,0.00028246,47260.0,47259.0,0.34003307]
[1641168229420,0.00028246,47260.0,47259.0,0.94146683]
[1641168230022,0.00028246,47260.0,47259.0,0.34003307]
[1641168230225,0.00028246,47260.0,47258.0,0.60143376]
[1641168230572,0.00028246,47260.0,47259.0,0.94659176]
[1641168230973,0.05318846,47260.0,47255.0,0.60143376]
[1641168231177,0.00028246,47260.0,47255.0,0.60143376]
[1641168231473,0.00028246,47260.0,47256.0,0.60143376]
[1641168231674,0.30366632,47259.0,47256.0,0.60143376]
[1641168231875,0.30366632,47259.0,47258.0,0.13839248]
[1641168232677,0.40948017,47259.0,47258.0,0.13839248]
[1641168232878,0.10581385,47259.0,47258.0,0.13839248]
[1641168233277,0.10581385,47259.0,47258.0,0.48355048]
[1641168233476,0.10581385,47259.0,47258.0,0.13839248]
[1641168233977,0.44647018,47259.0,47258.0,0.13839248]
[1641168235822,0.15581385,47259.0,47258.0,0.13839248]
[1641168236021,0.10581385,47259.0,47258.0,0.13839248]
[1641168238282,0.10590386,47259.0,47258.0,0.13839248]